fUSD/lending_fUSD_20251023
["ID","MTS","AMOUNT","RATE_DAILY","PERIOD"]
[392206745,1761254928300,-274.09171219,0.00019,2]
[392206746,1761254932697,-265.76824169,0.00019,2]
[392206747,1761254935057,-195.01483769,0.00019,2]
[392206748,1761254937575,-185.75706546,0.00019,2]
[392206749,1761254941151,-313.74371615,0.00019,2]
[392206751,1761254944477,-231.27944588,0.00019,2]
[392206753,1761254946946,-154.74435891,0.00019,2]
[392206754,1761254947134,-285.10560039,0.00019,2]
[392206755,1761254947155,-159.596045,0.00019899,2]
[392206756,1761254947176,-300.0,0.00019997,2]
[392206757,1761254947196,-634.0,0.00019998,2]
[392206758,1761254947216,-568.36104353,0.00019998,2]
[392206759,1761254947237,-560.18927945,0.00019998,2]
[392206760,1761254947260,-500.0,0.00019998,2]
[392206761,1761254947280,-437.64542458,0.00019998,2]
[392206762,1761254947302,-500.0,0.00019998,2]
[392206763,1761254947324,-500.0,0.00019998,2]
[392206764,1761254947346,-500.0,0.00019998,2]
[392206765,1761254947370,-500.0,0.00019998,2]
[392206766,1761254947391,-500.0,0.00019998,2]
[392206767,1761254947414,-500.0,0.00019998,2]
[392206768,1761254947438,-500.0,0.00019998,2]
[392206769,1761254947459,-500.0,0.00019998,2]
[392206770,1761254947479,-308.77136125,0.00019998,2]
[392206771,1761254947501,-500.0,0.00019998,2]
[392206772,1761254947523,-500.0,0.00019998,2]
[392206773,1761254947544,-500.0,0.00019998,2]
[392206774,1761254947565,-500.0,0.00019998,2]
[392206775,1761254947588,-500.0,0.00019998,2]
[392206776,1761254947609,-500.0,0.00019998,2]
[392206777,1761254947630,-151.52149159,0.00019998,2]
[392206778,1761254947653,-173.11268397,0.00019998,2]
[392206779,1761254947673,-265.76824169,0.00019998,2]
[392206780,1761254947692,-143.45456713,0.00019999,2]
[392206781,1761254947712,-355.62359289,0.00019999,2]
[392206782,1761254947732,-49987.03516853,0.0002,2]
[392206783,1761254952131,-38497.47898676,0.0002,2]
[392206784,1761254962084,-500.0,0.00019998,2]
[392206785,1761254962107,-580.52604188,0.00019998,2]
[392206786,1761254962128,-1838.49215812,0.0002,2]
[392206787,1761254969094,-3651.76028,0.0002,2]
[392206799,1761255031722,-300.0,0.00019999,2]
[392206803,1761255031732,-314.0,0.00019999,2]
[392206807,1761255031741,-150.0,0.00019999,2]
[392206811,1761255031750,-563.68102849,0.0002,2]
[392206813,1761255031761,-1368.50696115,0.0002,2]
[392206814,1761255031823,-50972.65737241,0.0002,2]
[392206815,1761255031832,-1552.80685468,0.0002,2]
[392206816,1761255031842,-2358.62334273,0.0002,2]
[392206817,1761255031851,-158.84141481,0.0002,2]
[392206818,1761255031860,-840.22501998,0.0002,2]
[392206819,1761255031870,-192.13789695,0.0002,2]
[392206820,1761255031879,-3036.04295919,0.0002,2]
[392206821,1761255031889,-8988.31278117,0.0002001,2]
[392206822,1761255031898,-1492.79976652,0.0002085,2]
[392206823,1761255031908,-300.0,0.000209,2]
[392206824,1761255031917,-4153.59637677,0.00021,2]
[392206825,1761255031927,-16656.13021851,0.000215,2]
[392206826,1761255031936,-195.0,0.00021889,2]
[392206827,1761255031945,-195.0,0.00021999,2]
[392206828,1761255031954,-387.45424709,0.00021999,2]
[392206829,1761255031963,-160.97,0.00022,2]
[392206830,1761255031973,-997.00124235,0.00025,2]
[392206831,1761255031983,-13333.3555081,0.00026613,2]
[392206832,1761255031992,-161.68303364,0.00027,2]
[392206833,1761255032001,-7312.77863266,0.00028,2]
[392206834,1761255032010,-1004.13099059,0.00028181,2]
[392206835,1761255032021,-227.73427391,0.00029498,2]
[392206836,1761255032030,-2975.0737498,0.00030023,2]
[392206837,1761255032040,-663.8286822,0.00030784,2]
[392206838,1761255032049,-159.52,0.00031172,2]
[392206839,1761255032059,-578.20924308,0.00031294,2]
[392206840,1761255032068,-9100.99605226,0.00032109,2]
[392206841,1761255032078,-352.8,0.0003224,120]
[392206843,1761255032088,-150.0,0.00032824,2]
[392206844,1761255032097,-150.0,0.00032824,120]
[392206845,1761255032107,-1499.48,0.00032944,2]
[392206846,1761255032116,-151.0,0.0003368,2]
[392206847,1761255032126,-200.0,0.0003368,2]
[392206848,1761255032135,-151.0,0.0003368,2]
[392206850,1761255032144,-151.0,0.0003368,2]
[392206851,1761255032154,-151.0,0.0003368,2]
[392206852,1761255032163,-151.0,0.0003368,2]
[392206853,1761255032173,-151.0,0.0003368,2]
[392206854,1761255032183,-151.0,0.0003368,2]
[392206855,1761255032192,-151.0,0.0003368,2]
[392206856,1761255032202,-151.0,0.0003368,2]
[392206857,1761255032211,-151.0,0.0003368,2]
[392206858,1761255032220,-151.0,0.0003368,2]
[392206859,1761255032229,-151.0,0.0003368,2]
[392206860,1761255032239,-151.0,0.0003368,2]
[392206861,1761255032248,-250.0,0.0003368,2]
[392206862,1761255032258,-151.0,0.0003368,2]
[392206863,1761255032267,-574.12855637,0.0003368,2]
[392206864,1761255032277,-151.0,0.0003368,2]
[392206865,1761255032286,-151.0,0.0003368,2]
[392206866,1761255032295,-250.0,0.0003368,2]
[392206867,1761255032305,-151.0,0.0003368,2]
[392206868,1761255032314,-151.0,0.0003368,2]
[392206869,1761255032323,-151.0,0.0003368,2]
[392206870,1761255032333,-151.0,0.0003368,2]
[392206871,1761255032343,-250.0,0.0003368,2]
[392206872,1761255032352,-151.0,0.0003368,2]
[392206873,1761255032362,-151.0,0.0003368,2]
[392206874,1761255032372,-151.0,0.0003368,2]
[392206875,1761255032381,-250.0,0.0003368,2]
[392206876,1761255032390,-151.0,0.0003368,2]
[392206877,1761255032399,-151.0,0.0003368,2]
[392206878,1761255032409,-151.0,0.0003368,2]
[392206879,1761255032418,-151.0,0.0003368,2]
[392206880,1761255032427,-250.0,0.0003368,2]
[392206881,1761255032440,-200.0,0.0003368,2]
[392206882,1761255032450,-151.0,0.0003368,2]
[392206883,1761255032460,-151.0,0.0003368,2]
[392206884,1761255032469,-250.0,0.0003368,2]
[392206885,1761255032478,-721.12765535,0.0003368,2]
[392206886,1761255032487,-151.0,0.0003368,2]
[392206887,1761255032496,-151.0,0.0003368,2]
[392206888,1761255032506,-250.0,0.0003368,2]
[392206889,1761255032515,-151.0,0.0003368,2]
[392206890,1761255032524,-151.0,0.0003368,2]
[392206891,1761255032533,-250.0,0.0003368,2]
[392206892,1761255032542,-151.0,0.0003368,2]
[392206893,1761255032551,-151.0,0.0003368,2]
[392206894,1761255032561,-250.0,0.0003368,2]
[392206895,1761255032570,-151.0,0.0003368,2]
[392206896,1761255032579,-151.0,0.0003368,2]
[392206897,1761255032588,-250.0,0.0003368,2]
[392206898,1761255032598,-151.0,0.0003368,2]
[392206899,1761255032607,-151.0,0.0003368,2]
[392206900,1761255032616,-250.0,0.0003368,2]
[392206901,1761255032625,-151.0,0.0003368,2]
[392206902,1761255032634,-151.0,0.0003368,2]
[392206903,1761255032644,-151.0,0.0003368,2]
[392206904,1761255032653,-250.0,0.0003368,2]
[392206905,1761255032663,-151.0,0.0003368,2]
[392206906,1761255032672,-250.0,0.0003368,2]
[392206907,1761255032681,-151.0,0.0003368,2]
[392206908,1761255032691,-151.0,0.0003368,2]
[392206909,1761255032700,-151.0,0.0003368,2]
[392206910,1761255032709,-250.0,0.0003368,2]
[392206911,1761255032718,-151.0,0.0003368,2]
[392206912,1761255032727,-250.0,0.0003368,2]
[392206913,1761255032737,-151.0,0.0003368,2]
[392206914,1761255032746,-151.0,0.0003368,2]
[392206915,1761255032755,-151.0,0.0003368,2]
[392206916,1761255032765,-250.0,0.0003368,2]
[392206917,1761255032774,-151.0,0.0003368,2]
[392206918,1761255032783,-250.0,0.0003368,2]
[392206919,1761255032792,-151.0,0.0003368,2]
[392206920,1761255032802,-151.0,0.0003368,2]
[392206921,1761255032811,-151.0,0.0003368,2]
[392206922,1761255032975,-250.0,0.0003368,2]
[392206923,1761255032999,-151.0,0.0003368,2]
[392206924,1761255033010,-151.0,0.0003368,2]
[392206925,1761255033020,-151.0,0.0003368,2]
[392206926,1761255033029,-151.0,0.0003368,2]
[392206927,1761255033039,-250.0,0.0003368,2]
[392206928,1761255033048,-151.0,0.0003368,2]
[392206929,1761255033060,-151.0,0.0003368,2]
[392206930,1761255033069,-250.0,0.0003368,2]
[392206931,1761255033079,-151.0,0.0003368,2]
[392206932,1761255033088,-151.0,0.0003368,2]
[392206933,1761255033098,-151.0,0.0003368,2]
[392206934,1761255033108,-250.0,0.0003368,2]
[392206935,1761255033118,-151.0,0.0003368,2]
[392206936,1761255033127,-151.0,0.0003368,2]
[392206937,1761255033137,-250.0,0.0003368,2]
[392206938,1761255033146,-151.0,0.0003368,2]
[392206939,1761255033156,-151.0,0.0003368,2]
[392206940,1761255033166,-151.0,0.0003368,2]
[392206941,1761255033176,-270.93013338,0.0003368,2]
[392206942,1761255033185,-151.0,0.0003368,2]
[392206943,1761255033195,-600.0,0.0003368,2]
[392206944,1761255033204,-500.0,0.0003368,2]
[392206945,1761255033213,-500.0,0.0003368,2]
[392206946,1761255033223,-500.0,0.0003368,2]
[392206947,1761255033232,-500.0,0.0003368,2]
[392206948,1761255033242,-500.0,0.0003368,2]
[392206949,1761255033251,-500.0,0.0003368,2]
[392206950,1761255033261,-500.0,0.0003368,2]
[392206951,1761255033271,-500.0,0.0003368,2]
[392206952,1761255033281,-500.0,0.0003368,2]
[392206953,1761255033291,-500.0,0.0003368,2]
[392206954,1761255033301,-500.0,0.0003368,2]
[392206955,1761255033311,-500.0,0.0003368,2]
[392206956,1761255033321,-500.0,0.0003368,2]
[392206957,1761255033330,-500.0,0.0003368,2]
[392206958,1761255033340,-500.0,0.0003368,2]
[392206959,1761255033349,-151.0,0.0003368,2]
[392206960,1761255033360,-500.0,0.0003368,2]
[392206961,1761255033369,-500.0,0.0003368,2]
[392206962,1761255033379,-500.0,0.0003368,2]
[392206963,1761255033388,-151.0,0.0003368,2]
[392206964,1761255033397,-250.0,0.0003368,2]
[392206965,1761255033407,-500.0,0.0003368,2]
[392206966,1761255033417,-500.0,0.0003368,2]
[392206967,1761255033426,-500.0,0.0003368,2]
[392206968,1761255033446,-151.0,0.0003368,2]
[392206969,1761255033456,-250.0,0.0003368,2]
[392206970,1761255033466,-500.0,0.0003368,2]
[392206971,1761255033475,-500.0,0.0003368,2]
[392206972,1761255033485,-500.0,0.0003368,2]
[392206973,1761255033494,-500.0,0.0003368,2]
[392206974,1761255033504,-151.0,0.0003368,2]
[392206975,1761255033514,-250.0,0.0003368,2]
[392206976,1761255033523,-500.0,0.0003368,2]
[392206977,1761255033532,-500.0,0.0003368,2]
[392206978,1761255033542,-500.0,0.0003368,2]
[392206979,1761255033551,-151.0,0.0003368,2]
[392206980,1761255033560,-250.0,0.0003368,2]
[392206981,1761255033570,-500.0,0.0003368,2]
[392206982,1761255033579,-209.40437684,0.0003368,2]
[392206983,1761255033589,-500.0,0.0003368,2]
[392206984,1761255033598,-151.0,0.0003368,2]
[392206985,1761255033608,-500.0,0.0003368,2]
[392206986,1761255033617,-250.0,0.0003368,2]
[392206987,1761255033627,-500.0,0.0003368,2]
[392206988,1761255033636,-500.0,0.0003368,2]
[392206989,1761255033646,-500.0,0.0003368,2]
[392206990,1761255033655,-151.0,0.0003368,2]
[392206991,1761255033664,-500.0,0.0003368,2]
[392206992,1761255033674,-250.0,0.0003368,2]
[392206993,1761255033683,-500.0,0.0003368,2]
[392206994,1761255033692,-500.0,0.0003368,2]
[392206995,1761255033702,-151.0,0.0003368,2]
[392206996,1761255033711,-250.0,0.0003368,2]
[392206997,1761255033720,-500.0,0.0003368,2]
[392206998,1761255033730,-500.0,0.0003368,2]
[392206999,1761255033739,-500.0,0.0003368,2]
[392207000,1761255033749,-151.0,0.0003368,2]
[392207001,1761255033758,-250.0,0.0003368,2]
[392207002,1761255033767,-500.0,0.0003368,2]
[392207003,1761255033777,-500.0,0.0003368,2]
[392207004,1761255033786,-500.0,0.0003368,2]
[392207005,1761255033795,-151.0,0.0003368,2]
[392207006,1761255033804,-250.0,0.0003368,2]
[392207007,1761255033813,-500.0,0.0003368,2]
[392207008,1761255033823,-500.0,0.0003368,2]
[392207009,1761255033832,-500.0,0.0003368,2]
[392207010,1761255033842,-250.0,0.0003368,2]
[392207011,1761255033851,-500.0,0.0003368,2]
[392207012,1761255033861,-151.0,0.0003368,2]
[392207013,1761255033871,-500.0,0.0003368,2]
[392207014,1761255033880,-250.0,0.0003368,2]
[392207015,1761255033890,-500.0,0.0003368,2]
[392207016,1761255033900,-500.0,0.0003368,2]
[392207017,1761255033909,-500.0,0.0003368,2]
[392207018,1761255033919,-500.0,0.0003368,2]
[392207019,1761255033929,-500.0,0.0003368,2]
[392207020,1761255033939,-500.0,0.0003368,2]
[392207021,1761255033948,-500.0,0.0003368,2]
[392207022,1761255033958,-200.0,0.0003368,2]
[392207023,1761255033967,-500.0,0.0003368,2]
[392207024,1761255033976,-500.0,0.0003368,2]
[392207025,1761255033986,-277.35679052,0.0003368,2]
[392207026,1761255033996,-500.0,0.0003368,2]
[392207027,1761255034006,-500.0,0.0003368,2]
[392207028,1761255034015,-500.0,0.0003368,2]
[392207029,1761255034026,-500.0,0.0003368,2]
[392207030,1761255034035,-151.0,0.0003368,2]
[392207031,1761255034045,-322.6107,0.0003368,2]
[392207032,1761255034054,-1938.0,0.000337,2]
[392207033,1761255034063,-502.2471513,0.000337,5]
[392207034,1761255034073,-500.0,0.000337,5]
[392207035,1761255034082,-500.75564392,0.000337,5]
[392207036,1761255034091,-500.0,0.000337,5]
[392207037,1761255034100,-500.0,0.000337,5]
[392207038,1761255034110,-500.0,0.000337,5]
[392207039,1761255034119,-500.0,0.000337,5]
[392207040,1761255034128,-500.0,0.000337,5]
[392207041,1761255034138,-500.0,0.000337,2]
[392207042,1761255034148,-500.0,0.000337,5]
[392207043,1761255034157,-500.0,0.000337,5]
[392207044,1761255034167,-500.0,0.000337,5]
[392207045,1761255034176,-479.26697898,0.000337,5]
[392207046,1761255034185,-500.0,0.000337,5]
[392207047,1761255034194,-418.78876365,0.000337,5]
[392207048,1761255034204,-9915.25,0.00033887,2]
[392207049,1761255034213,-300.0,0.00033998,120]
[392207050,1761255034223,-5000.0,0.00034002,2]
[392207051,1761255034232,-1129.3,0.0003409,2]
[392207052,1761255034241,-595.37131296,0.00034228,2]
[392207053,1761255034251,-200.0,0.00034228,2]
[392207054,1761255034261,-151.0,0.00034228,2]
[392207055,1761255034270,-600.0,0.00034228,2]
[392207056,1761255034279,-217.15233879,0.00034228,2]
[392207057,1761255034289,-200.0,0.00034228,2]
[392207058,1761255034298,-151.0,0.00034228,2]
[392207059,1761255034308,-807.41617309,0.00034248,5]
[392207060,1761255034318,-414.79416885,0.00034248,5]
[392207061,1761255034327,-24.62284478,0.00034248,5]
[392207062,1761255034981,-975.37715522,0.00034248,5]
[392207063,1761255034991,-570.98443138,0.00034248,5]
[392207064,1761255035001,-478.57378692,0.00034248,2]
[392207065,1761255035013,-21.42621308,0.00034248,2]
[392207066,1761255035023,-422.76465953,0.00034248,5]
[392207067,1761255035032,-500.0,0.00034248,5]
[392207068,1761255035042,-166.66,0.00034271,2]
[392207069,1761255035051,-505.16105696,0.00034344,2]
[392207070,1761255035061,-196.48046351,0.00034655,2]
[392207071,1761255035073,-1147.28283243,0.00034655,2]
[392207072,1761255035084,-852.71716757,0.00034655,2]
[392207073,1761255035146,-3133.03609757,0.00034655,2]
[392207074,1761255035157,-558.48343892,0.00034655,2]
[392207075,1761255035167,-168.0,0.00034657,7]
[392207076,1761255035176,-200.0,0.00034776,2]
[392207077,1761255035187,-600.0,0.00034776,2]
[392207078,1761255035196,-200.0,0.00034776,2]
[392207079,1761255035206,-1098.16153245,0.00034998,2]
[392207080,1761255035216,-151.3550329,0.00035,30]
[392207081,1761255035225,-500.79138186,0.00035034,2]
[392207082,1761255035234,-271.59315201,0.00035049,2]
[392207083,1761255035244,-334.5472959,0.00035049,2]
[392207084,1761255035253,-168.0,0.00035196,2]
[392207085,1761255035262,-200.0,0.00035324,2]
[392207086,1761255035272,-600.0,0.00035324,2]
[392207087,1761255035281,-200.0,0.00035324,2]
[392207088,1761255035291,-168.0,0.00035355,2]
[392207089,1761255035302,-166.66,0.00035402,2]
[392207090,1761255035311,-798.12279846,0.00035416,2]
[392207091,1761255035321,-168.0,0.00035491,2]
[392207092,1761255035331,-168.0,0.0003561,7]
[392207093,1761255035341,-168.0,0.00035632,7]
[392207094,1761255035350,-410.30315918,0.00035651,3]
[392207095,1761255036192,-255.69684082,0.00035651,3]
[392207096,1761255036203,-339.63457932,0.00035651,120]
[392207097,1761255036214,-141.71542068,0.00035651,120]
[392207098,1761255036223,-1750.06457932,0.00035725,2]
[392207102,1761255038454,-500.0,0.00019999,2]
[392207103,1761255038463,-293.94970221,0.00019999,2]
[392207104,1761255038475,-56.21935241,0.00019999,2]
[392207105,1761255038484,-237.85,0.00032153,30]
[392207106,1761255038493,-237.85,0.00033407,30]
[392207107,1761255038503,-150.0,0.00033444,3]
[392207108,1761255038512,-34.52447009,0.0003418,3]
[392207109,1761255038523,-115.47552991,0.0003418,3]
[392207110,1761255038532,-237.85,0.0003466,30]
[392207111,1761255038542,-1408.11050133,0.00035725,2]
[392207112,1761255038551,-1658.33,0.00035856,2]
[392207113,1761255038560,-200.0,0.00035872,2]
[392207114,1761255038569,-600.0,0.00035872,2]
[392207115,1761255038578,-200.0,0.00035872,2]
[392207116,1761255038588,-168.0,0.00035873,7]
[392207117,1761255038597,-237.85,0.00035914,60]
[392207118,1761255038606,-168.0,0.00035945,2]
[392207119,1761255038615,-168.0,0.00036072,2]
[392207120,1761255038624,-168.0,0.00036105,2]
[392207121,1761255038633,-617.777,0.00036105,44]
[392207122,1761255038642,-168.0,0.0003613,7]
[392207123,1761255038650,-168.0,0.00036261,2]
[392207124,1761255038659,-346.92554585,0.00036418,2]
[392207125,1761255038668,-207.4,0.00036419,2]
[392207126,1761255038678,-747.8093786,0.00036419,2]
[392207127,1761255038687,-200.0,0.0003642,2]
[392207128,1761255038697,-600.0,0.0003642,2]
[392207129,1761255038706,-200.0,0.0003642,2]
[392207130,1761255038715,-168.0,0.00036493,2]
[392207131,1761255038724,-168.0,0.00036505,2]
[392207132,1761255038733,-200.98386378,0.00036531,15]
[392207133,1761255038742,-662.48804781,0.00036531,2]
[392207134,1761255038751,-3339.08163432,0.00036531,2]
[392207135,1761255038769,-544.38170658,0.00036531,2]
[392207136,1761255038785,-370.53,0.00036531,2]
[392207143,1761255039714,-7224.37092572,0.00036531,2]
[392207145,1761255039725,-2413.40443685,0.00036531,2]
[392207150,1761255039827,-68476.22939381,0.00036531,2]
[392207151,1761255039837,-766.04937455,0.00036531,8]
[392207153,1761255039851,-1000.0,0.00036532,2]
[392207154,1761255039861,-2500.0,0.00036532,2]
[392207155,1761255039870,-623.95164047,0.00036532,2]
[392207156,1761255039879,-199.18575031,0.00036532,9]
[392207157,1761255039889,-692.99358618,0.00036532,2]
[392207159,1761255039898,-166.66,0.00036534,2]
[392207160,1761255039908,-300.0,0.000366,13]
[392207161,1761255039917,-151.0,0.00036628,14]
[392207162,1761255039927,-44216.10005317,0.00036631,2]
[392207168,1761255040302,-1.6e-07,0.00036631,2]
[392207170,1761255040346,-47992.52986052,0.00036631,2]
[392207172,1761255040374,-56777.59646416,0.00036631,2]
[392207173,1761255040383,-86449.21614302,0.00036631,2]
[392207174,1761255040393,-759613.95790126,0.00036631,2]
[392207175,1761255040404,-400.0,0.00036631,2]
[392207177,1761255040440,-8556.83530138,0.00036631,2]
[392207178,1761255040451,-8947.21879473,0.00036631,2]
[392207180,1761255040463,-8943.78386462,0.00036631,2]
[392207181,1761255040474,-9077.54866152,0.00036631,2]
[392207182,1761255040485,-8943.84023489,0.00036631,2]
[392207241,1761255042799,-3353.52580286,0.00036631,2]
[392207242,1761255042811,-5566.35861317,0.00036631,2]
[392207248,1761255043034,-1616.13556112,0.00036631,2]
[392207250,1761255043046,-43262.7929539,0.00036631,2]
[392207253,1761255043137,-1772.5,0.00036631,2]
[392207267,1761255045940,-151.0,0.0003391,2]
[392207268,1761255045950,-444829.4962795,0.00036631,2]
[392207269,1761255046022,-179898.35161883,0.00036631,2]
[392207270,1761255055229,250.0,0.00017,2]
[392207271,1761255060616,200.0,0.00036631,120]
[392207336,1761255160341,-153.74347769,0.00019999,2]
[392207337,1761255160366,-12.7299696,0.00019999,2]
[392207534,1761255362255,200.0,0.00036619,120]
[392207558,1761255461674,-245.2372681,0.00024932,2]
[392207568,1761255550464,-254.7627319,0.00024932,2]
[392207569,1761255550498,-19.16479733,0.00027425,120]
[392207664,1761255661022,200.0,0.00036602,120]
[392207732,1761255786601,422.41,0.00013699,2]
[392207744,1761255896628,-422.41,0.00020187,2]
[392207745,1761255896655,-330.50144307,0.00022206,2]
[392207746,1761255896681,-500.0,0.00024932,2]
[392207747,1761255896708,-422.41,0.00026676,2]
[392207748,1761255896734,-407.33658285,0.00027425,120]
[392207749,1761255896760,-1938.0,0.000296,2]
[392207750,1761255896786,-195.0,0.00030167,120]
[392207751,1761255896814,-250.0,0.00030167,2]
[392207752,1761255896839,-300.0,0.00030167,120]
[392207753,1761255896869,-1600.0,0.00030999,2]
[392207754,1761255896895,-1600.0,0.00030999,2]
[392207755,1761255896922,-157.0,0.00031,120]
[392207756,1761255896948,-172.0,0.00031,120]
[392207757,1761255896979,-6210.892376,0.00032148,2]
[392207758,1761255897006,-494.44959808,0.0003231,2]
[392207827,1761255934082,-83.759645,0.0003231,2]
[392207828,1761255934104,-300.0,0.00032372,120]
[392207829,1761255934388,-145.83504601,0.0003241,120]
[392207830,1761255961023,200.0,0.00036602,120]
[392207832,1761256020145,526.45,0.00016999,2]
[392207833,1761256020351,526.45,0.00017893,2]
[392207834,1761256020544,526.45,0.00018788,2]
[392207835,1761256020779,526.45,0.00019683,2]
[392207836,1761256022226,526.45,0.00020577,2]
[392207837,1761256022332,526.45,0.00021472,2]
[392207838,1761256022459,526.45,0.00022367,2]
[392207839,1761256022514,526.45,0.00023261,2]
[392207840,1761256022650,526.45,0.00024156,2]
[392207841,1761256027115,-321.30141559,0.00025051,2]
[392207842,1761256028123,-205.14858441,0.00025051,2]
[392207843,1761256028145,-185.5808303,0.00025945,2]
[392207844,1761256030364,-340.8691697,0.00025945,2]
[392207845,1761256030386,-526.45,0.0002684,2]
[392207846,1761256030407,-1458.15802708,0.00027,2]
[392207847,1761256154087,-97.20197292,0.00027,2]
[392207848,1761256154108,-526.45,0.00027735,2]
[392207849,1761256154129,-93.94896988,0.00028629,2]
[392207850,1761256165085,-423.7864198,0.00028629,2]
[392207851,1761256172104,-8.71461032,0.00028629,2]
[392207852,1761256172128,-526.45,0.00029524,2]
[392207853,1761256172151,-526.45,0.00030418,2]
[392207854,1761256172172,-526.45,0.00031313,2]
[392207855,1761256172193,-526.45,0.00032208,2]
[392207856,1761256172212,-166.66666668,0.00032272,2]
[392207857,1761256172235,-166.66666666,0.00032304,2]
[392207858,1761256172494,-578.20924308,0.0003231,2]
[392207859,1761256172514,-166.66666666,0.00032335,2]
[392207860,1761256172534,-154.16495399,0.0003241,120]
[392207861,1761256172555,-300.0,0.0003241,120]
[392207862,1761256172575,-331.65077443,0.0003241,120]
[392207863,1761256172595,-373.80082037,0.00032433,2]
[392207864,1761256172615,-161.92522945,0.00032433,2]
[392207865,1761256172638,-500.0,0.00032433,2]
[392207866,1761256172661,-500.0,0.00032433,2]
[392207867,1761256172682,-500.0,0.00032433,2]
[392207868,1761256172704,-500.0,0.00032433,2]
[392207869,1761256172728,-500.0,0.00032433,2]
[392207870,1761256172753,-500.0,0.00032433,2]
[392207871,1761256172776,-500.0,0.00032433,2]
[392207872,1761256172799,-500.0,0.00032433,2]
[392207873,1761256172823,-500.0,0.00032433,2]
[392207874,1761256172845,-500.0,0.00032433,2]
[392207875,1761256172868,-500.0,0.00032433,2]
[392207876,1761256172893,-500.0,0.00032433,2]
[392207877,1761256172919,-500.0,0.00032433,2]
[392207878,1761256172943,-500.0,0.00032433,2]
[392207879,1761256172966,-500.0,0.00032433,2]
[392207880,1761256172994,-355.94884799,0.00032433,2]
[392207881,1761256173017,-1600.0,0.00032433,3]
[392207882,1761256173037,-300.0,0.00032433,2]
[392207883,1761256173058,-186.0,0.00032433,3]
[392207884,1761256173083,-400.0,0.00032434,3]
[392207885,1761256173104,-622.0,0.00032434,3]
[392207886,1761256173128,-166.66,0.00032436,30]
[392207887,1761256173151,-151.0,0.0003282,2]
[392207888,1761256173172,-277.35679052,0.0003282,2]
[392207889,1761256173194,-150.0,0.00032918,4]
[392207890,1761256173215,-150.0,0.00032918,4]
[392207891,1761256173236,-150.0,0.00032918,4]
[392207892,1761256173257,-150.0,0.00032918,4]
[392207893,1761256173279,-549.75040208,0.0003305,5]
[392207894,1761256173301,-500.0,0.0003305,5]
[392207895,1761256173324,-526.45,0.00033102,2]
[392207896,1761256173346,-166.66,0.00033119,30]
[392207897,1761256173367,-422.41,0.00033165,2]
[392207898,1761256173387,-500.0,0.00033233,5]
[392207899,1761256173407,-151.0,0.00033368,2]
[392207900,1761256173429,-500.0,0.00033579,2]
[392207901,1761256173450,-346.42,0.00033679,7]
[392207902,1761256173470,-500.0,0.00033679,2]
[392207903,1761256173490,-500.0,0.00033679,120]
[392207904,1761256173510,-500.0,0.00033679,30]
[392207905,1761256173531,-500.0,0.00033679,120]
[392207906,1761256173553,-500.0,0.00033679,120]